fUST/lending_fUST_20260223
["ID","MTS","AMOUNT","RATE_DAILY","PERIOD"]
[406386250,1771852356421,3327.74306903,0.000157,120]
[406386251,1771852365076,685.74599643,0.000157,120]
[406386348,1771853152140,-341.7415764,0.00013699,2]
[406386349,1771853152159,-192.59923229,0.00013699,2]
[406386350,1771853152178,-165.78854723,0.00013699,2]
[406386351,1771853152198,-235.33565321,0.00013699,2]
[406386352,1771853152216,-505.77954361,0.00013699,2]
[406386353,1771853152236,-150.0,0.00013949,2]
[406386354,1771853152255,-500.0,0.00015,2]
[406386355,1771853152275,-1200.0,0.00015699,2]
[406386356,1771853152292,-153.21841414,0.000157,2]
[406386357,1771853152313,-177.0,0.00015949,2]
[406386358,1771853152333,-388.0,0.00017256,2]
[406386359,1771853152351,-190.0,0.00017807,2]
[406386360,1771853152370,-300.0,0.00017807,2]
[406386361,1771853152389,-15898.78127477,0.00017807,2]
[406386362,1771853245077,-227.88058892,0.00017807,2]
[406386363,1771853254097,-476.4318726,0.00017807,2]
[406386389,1771853347164,-217.04757002,0.00016,2]
[406386390,1771853347207,-551.576814,0.00017028,2]
[406386391,1771853347230,-177.27797984,0.00017239,2]
[406386392,1771853347252,-16924.21806691,0.0001734,2]
[406386393,1771853347275,-2149.80380588,0.000176,2]
[406386394,1771853347297,-151.13409985,0.00017808,2]
[406386395,1771853347319,-150.0,0.00017808,2]
[406386396,1771853347341,-204.0,0.00017949,2]
[406386397,1771853347363,-436.75080608,0.00017999,2]
[406386398,1771853347384,-500.0,0.00017999,2]
[406386399,1771853347408,-500.0,0.00017999,2]
[406386400,1771853347431,-500.0,0.00017999,2]
[406386401,1771853347454,-500.0,0.00017999,2]
[406386402,1771853347479,-500.0,0.00017999,2]
[406386403,1771853347501,-551.24134551,0.00017999,2]
[406386404,1771853347524,-488.36094618,0.00017999,2]
[406386405,1771853347548,-500.0,0.00017999,2]
[406386406,1771853347572,-500.0,0.00017999,2]
[406386407,1771853347595,-500.0,0.00017999,2]
[406386408,1771853347621,-500.0,0.00017999,2]
[406386409,1771853347643,-500.0,0.00017999,2]
[406386410,1771853347665,-500.0,0.00017999,2]
[406386411,1771853347688,-500.0,0.00017999,2]
[406386412,1771853347712,-500.0,0.00017999,2]
[406386413,1771853347735,-500.0,0.00017999,2]
[406386414,1771853347756,-213.60622214,0.00017999,2]
[406386415,1771853347782,-500.0,0.00017999,2]
[406386416,1771853347805,-500.0,0.00017999,2]
[406386417,1771853347828,-500.0,0.00017999,2]
[406386418,1771853347852,-500.0,0.00017999,2]
[406386419,1771853347873,-500.0,0.00017999,2]
[406386420,1771853347896,-500.0,0.00017999,2]
[406386421,1771853347921,-500.0,0.00017999,2]
[406386422,1771853347943,-500.0,0.00017999,2]
[406386423,1771853347966,-500.0,0.00017999,2]
[406386424,1771853347987,-500.0,0.00017999,2]
[406386425,1771853348011,-500.0,0.00017999,2]
[406386426,1771853348033,-500.0,0.00017999,2]
[406386427,1771853348056,-500.0,0.00017999,2]
[406386428,1771853348079,-500.0,0.00017999,2]
[406386429,1771853348100,-500.0,0.00017999,2]
[406386430,1771853348122,-500.0,0.00017999,2]
[406386431,1771853348145,-500.0,0.00017999,2]
[406386432,1771853348168,-500.0,0.00017999,2]
[406386433,1771853348191,-500.0,0.00017999,2]
[406386434,1771853348213,-500.0,0.00017999,2]
[406386435,1771853348236,-500.0,0.00017999,2]
[406386436,1771853348258,-282.7769013,0.00017999,2]
[406386437,1771853348283,-607.41172327,0.00017999,2]
[406386438,1771853348311,-500.0,0.00017999,2]
[406386439,1771853348339,-500.0,0.00017999,2]
[406386440,1771853348363,-500.0,0.00017999,2]
[406386441,1771853348391,-500.0,0.00017999,2]
[406386442,1771853348418,-385.67700731,0.00017999,2]
[406386443,1771853348444,-500.0,0.00017999,2]
[406386444,1771853348471,-500.0,0.00017999,2]
[406386445,1771853348498,-500.0,0.00017999,2]
[406386446,1771853348524,-500.0,0.00017999,2]
[406386447,1771853348550,-500.0,0.00017999,2]
[406386448,1771853348576,-4.36917171,0.00017999,2]
[406386449,1771853350255,-495.63082829,0.00017999,2]
[406386450,1771853350290,-500.0,0.00017999,2]
[406386451,1771853350319,-500.0,0.00017999,2]
[406386452,1771853350350,-500.0,0.00017999,2]
[406386453,1771853350379,-500.0,0.00017999,2]
[406386454,1771853350411,-500.0,0.00017999,2]
[406386455,1771853350441,-500.0,0.00017999,2]
[406386456,1771853350470,-500.0,0.00017999,2]
[406386457,1771853350495,-500.0,0.00017999,2]
[406386458,1771853350518,-500.0,0.00017999,2]
[406386459,1771853350545,-500.0,0.00017999,2]
[406386460,1771853350575,-500.0,0.00017999,2]
[406386461,1771853350602,-500.0,0.00017999,2]
[406386462,1771853350627,-500.0,0.00017999,2]
[406386463,1771853350653,-500.0,0.00017999,2]
[406386464,1771853350679,-500.0,0.00017999,2]
[406386465,1771853350704,-500.0,0.00017999,2]
[406386466,1771853350729,-500.0,0.00017999,2]
[406386467,1771853350755,-500.0,0.00017999,2]
[406386468,1771853350785,-500.0,0.00017999,2]
[406386469,1771853350810,-500.0,0.00017999,2]
[406386470,1771853350837,-500.0,0.00017999,2]
[406386471,1771853350863,-500.0,0.00017999,2]
[406386472,1771853350889,-500.0,0.00017999,2]
[406386473,1771853350913,-500.0,0.00017999,2]
[406386474,1771853350939,-500.0,0.00017999,2]
[406386475,1771853350968,-500.0,0.00017999,2]
[406386476,1771853350992,-500.0,0.00017999,2]
[406386477,1771853351018,-500.0,0.00017999,2]
[406386478,1771853351044,-500.0,0.00017999,2]
[406386479,1771853351070,-500.0,0.00017999,2]
[406386480,1771853351191,-154.32440016,0.00017999,2]
[406386481,1771853356067,-500.0,0.00017999,2]
[406386482,1771853356089,-345.67559984,0.00017999,2]
[406386483,1771853356110,-500.0,0.00017999,2]
[406386484,1771853356133,-269.46763512,0.00017999,2]
[406386485,1771853372144,-230.53236488,0.00017999,2]
[406386486,1771853372164,-103.15038543,0.00017999,2]
[406386519,1771853438415,-300.0,0.00017999,2]
[406386520,1771853438425,-150.0,0.00018,2]
[406386521,1771853438434,-2287.34730515,0.00018,2]
[406386522,1771853438446,-9308.31057991,0.00018,2]
[406386523,1771853438471,-131761.09347147,0.00018,2]
[406386524,1771853438481,-250.0,0.00018356,2]
[406386525,1771853438491,-200.0,0.00018904,2]
[406386526,1771853438501,-1043.92901908,0.00019,2]
[406386527,1771853438510,-3268.91511445,0.00019949,2]
[406386528,1771853438520,-273.71509027,0.0002,2]
[406386529,1771853438529,-212.91412355,0.0002,2]
[406386530,1771853438539,-12187.97673883,0.0002,2]
[406386531,1771853438549,-1379.56015804,0.0002,3]
[406386532,1771853438558,-891.3627678,0.0002009,2]
[406386533,1771853438568,-276.63789255,0.00021141,2]
[406386534,1771853438578,-154.8486787,0.00021918,2]
[406386535,1771853438588,-150.0,0.00021918,2]
[406386536,1771853438598,-7794.72344871,0.00022,7]
[406386537,1771853438607,-507.19339349,0.00022,2]
[406386538,1771853438617,-214.64674638,0.00022466,2]
[406386539,1771853438626,-13076.05316356,0.0002465,2]
[406386540,1771853438636,-380.0,0.00024658,2]
[406386541,1771853438646,-584.70681925,0.00025,7]
[406386542,1771853438660,-1682.71318075,0.00025,7]
[406386543,1771853438669,-73.51630965,0.00026,30]
[406386558,1771853443873,-1933.36783051,0.00018256,2]
[406386559,1771853443883,-3327.61428735,0.00026,30]
[406386560,1771853443893,-2626.29788214,0.000275,2]
[406386561,1771853443904,-1684.15048038,0.000275,2]
[406386567,1771853446623,-5818.50468065,0.000275,2]
[406386598,1771853519756,-500.0,0.00017999,2]
[406386599,1771853519784,-456.37908036,0.00017999,2]
[406386600,1771853519814,-305.72556426,0.00017999,2]
[406386601,1771853527455,320.24175355,0.00013699,2]
[406386620,1771854011745,275.84,6.5e-05,2]
[406386642,1771854350116,-204.25836632,0.00011765,2]
[406386644,1771854449104,-4211.78242181,0.00011765,2]
[406386645,1771854454094,-329.76522365,0.00011765,2]
[406386669,1771854549090,-1543.67557328,0.00011416,2]
[406386670,1771854549111,-3081.2241081,0.00011531,2]
[406386672,1771854564078,-1918.7758919,0.00011531,2]
[406386673,1771854564102,-1701.14406548,0.00011647,2]
[406386674,1771854564123,-581.1944388,0.00012496,2]
[406386675,1771854564142,-208.75446729,0.00013173,2]
[406386676,1771854564164,-300.0,0.00013272,2]
[406386677,1771854564183,-500.0,0.00013273,2]
[406386678,1771854564203,-500.0,0.00013273,2]
[406386679,1771854564222,-500.0,0.00013273,2]
[406386680,1771854564241,-500.0,0.00013273,2]
[406386681,1771854564260,-300.0,0.00013698,2]
[406386682,1771854564280,-503.35731386,0.00013698,2]
[406386683,1771854564297,-502.10267406,0.00013699,2]
[406386684,1771854564316,-506.48326983,0.00013699,2]
[406386685,1771854564334,-502.69412043,0.00013699,2]
[406386686,1771854564353,-500.0,0.00013699,2]
[406386687,1771854564373,-511.88022803,0.00013699,2]
[406386688,1771854564406,-234.81283129,0.00013699,2]
[406386689,1771854564425,-506.88562164,0.00013699,2]
[406386690,1771854564443,-500.0,0.00013699,2]
[406386691,1771854564462,-500.0,0.00013699,2]
[406386692,1771854564481,-500.0,0.00013699,2]
[406386693,1771854564499,-519.48799971,0.00013699,2]
[406386694,1771854564517,-501.09670929,0.00013699,2]
[406386695,1771854564535,-1000.0,0.00013821,2]
[406386696,1771854564553,-1000.0,0.00013821,2]
[406386697,1771854564572,-1002.85553908,0.00013821,2]
[406386698,1771854564591,-500.0,0.00014247,2]
[406386699,1771854564609,-286.17647626,0.00014247,2]
[406386700,1771854564725,-500.0,0.00014247,2]
[406386701,1771854564745,-500.0,0.00014247,2]
[406386702,1771854564766,-503.22081862,0.00014368,2]
[406386703,1771854564787,-420.0,0.00014551,2]
[406386704,1771854564806,-500.0,0.00017807,2]
[406386705,1771854564825,-502.23497652,0.00017807,2]
[406386706,1771854564844,-500.0,0.00017807,2]
[406386707,1771854564863,-501.94541573,0.00017807,2]
[406386708,1771854564883,-165.97455883,0.00017897,2]
[406386709,1771854564903,-500.0,0.00017996,2]
[406386710,1771854564923,-500.0,0.00017996,2]
[406386711,1771854564942,-500.0,0.00017999,2]
[406386712,1771854564962,-500.0,0.00017999,2]
[406386713,1771854564982,-500.0,0.00017999,2]
[406386714,1771854565002,-500.0,0.00017999,2]
[406386715,1771854565020,-500.0,0.00017999,2]
[406386716,1771854565039,-500.0,0.00017999,2]
[406386717,1771854565058,-500.0,0.00017999,2]
[406386718,1771854565077,-536.71440453,0.00017999,2]
[406386719,1771854565100,-7978.62017912,0.00018,2]
[406386720,1771854565120,-500.0,0.00018821,2]
[406386721,1771854565141,-500.0,0.00019095,2]
[406386722,1771854565162,-549.36450005,0.00019369,2]
[406386723,1771854565181,-1299.9287336,0.00019429,2]
[406386724,1771854565199,-368.3856342,0.00019429,2]
[406386725,1771854565216,-1299.9287336,0.0002148,2]
[406386726,1771854565233,-368.3856342,0.0002172,2]
[406386727,1771854565273,-1299.9287336,0.0002353,2]
[406386728,1771854565292,-368.3856342,0.00024012,2]
[406386729,1771854565311,-500.0,0.00024999,2]
[406386730,1771854565329,-2750.75,0.00025,7]
[406386731,1771854565348,-1299.9287336,0.00025581,2]
[406386732,1771854565367,-3011.86,0.0002574,4]
[406386733,1771854565387,-368.3856342,0.00026303,2]
[406386734,1771854565408,-500.0,0.00027499,2]
[406386735,1771854565430,-7228.85877764,0.000275,2]
[406386736,1771854565451,-160.0,0.000275,60]
[406386737,1771854565472,-653.17866967,0.00028,2]
[406386738,1771854567077,-644.97933525,0.00028882,2]
[406386739,1771854567102,-2727.0,0.00029,120]
[406386740,1771854567122,-910.9189015,0.00029459,7]
[406386741,1771854569288,2550.16653414,0.00029587,2]
[406386742,1771854578543,1691.69685167,0.00018721,2]
[406386743,1771854583543,1691.69685164,0.00029211,2]
[406386750,1771854611491,495.80413082,0.00029211,30]
[406386783,1771854632755,-320.24175355,0.00029211,30]
[406386785,1771854632769,-1541.73411563,0.00029211,30]
[406386787,1771854632779,-500.0,0.00029886,2]
[406386789,1771854632788,-500.0,0.00029886,2]
[406386791,1771854632798,-337.23537244,0.00029886,2]
[406386792,1771854632808,-209.40437684,0.00029886,2]
[406386793,1771854632817,-217.15233878,0.00029886,2]
[406386794,1771854632827,-225.18697532,0.00029886,2]
[406386795,1771854632837,-233.51889341,0.00029886,2]
[406386796,1771854632847,-242.15909246,0.00029886,2]
[406386797,1771854632857,-251.11897888,0.00029886,2]
[406386798,1771854632988,-260.4103811,0.00029886,2]
[406386799,1771854632999,-270.0455652,0.00029886,2]
[406386800,1771854633008,-280.03725112,0.00029886,2]
[406386801,1771854633018,-290.39862941,0.00029886,2]
[406386802,1771854633027,-301.1433787,0.00029886,2]
[406386803,1771854633036,-306.43,0.0002999,3]
[406386804,1771854633046,-255.37,0.0002999,3]
[406386805,1771854633055,-766.12,0.0002999,3]
[406386806,1771854633064,-996.57843562,0.0002999,2]
[406386878,1771854640268,-442.58507751,0.0002999,2]
[406387131,1771854642906,433.18211007,0.00024953,11]
[406387145,1771854643448,-859.25901828,0.0002999,2]
[406387146,1771854643459,-6884.73744607,0.0002999,2]
[406387147,1771854643469,-26832.84558093,0.0003,30]
[406387148,1771854643480,-816.41322366,0.0003,30]
[406387149,1771854643492,-484.99455238,0.0003,30]
[406387150,1771854643503,-382.91041861,0.0003,30]
[406387152,1771854645590,-8973.61546511,0.0003,30]
[406387153,1771854645756,-6078.12145309,0.0003,30]
[406387162,1771854720205,500.0,0.00013698,2]
[406387163,1771854720440,500.0,0.00017997,2]
[406387164,1771854720689,261.3145328,0.00017997,2]
[406387165,1771854726057,150.0,0.00021918,2]
[406387166,1771854726114,250.0,0.00022466,2]
[406387167,1771854726164,151.08805252,0.00023014,2]
[406387168,1771854735632,20458.19660131,0.00028598,2]
[406387171,1771855169239,-200.0,0.0001275,11]
[406387172,1771855170224,-66.08596024,0.0001275,11]
[406387173,1771855170250,-133.91403976,0.00012879,11]
[406387174,1771855171798,-200.0,0.00012879,11]
[406387175,1771855172831,-200.0,0.00012879,11]
[406387176,1771855174128,-200.0,0.00012879,11]
[406387177,1771855175362,-200.0,0.00012879,11]
[406387178,1771855176628,-200.0,0.00012879,11]
[406387179,1771855177590,-200.0,0.00012879,11]
[406387180,1771855179019,-200.0,0.00012879,11]
[406387181,1771855185519,-150.0,0.00012879,11]
[406387182,1771855208934,231.48,6.5e-05,2]
[406387183,1771855210004,231.48,6.5e-05,2]
[406387184,1771855212198,231.48,6.5e-05,2]
[406387185,1771855213158,231.48,6.5e-05,2]
[406387186,1771855213860,231.48,6.5e-05,2]
[406387187,1771855214960,231.48,6.5e-05,2]
[406387188,1771855215523,231.48,6.5e-05,2]
[406387189,1771855216386,231.48,6.6e-05,2]
[406387190,1771855217811,231.48,6.6e-05,2]
[406387191,1771855218372,231.48,6.6e-05,2]
[406387192,1771855219465,231.48,6.6e-05,2]
[406387193,1771855222672,231.48,6.6e-05,2]
[406387194,1771855224022,231.48,6.6e-05,2]
[406387195,1771855225180,231.48,6.6e-05,2]
[406387196,1771855225915,231.48,6.6e-05,2]
[406387197,1771855226661,231.48,6.6e-05,2]
[406387198,1771855227272,231.48,6.6e-05,2]
[406387199,1771855227824,231.48,6.6e-05,2]
[406387200,1771855228578,231.48,6.6e-05,2]
[406387201,1771855230608,231.48,6.7e-05,2]
[406387202,1771855231688,231.48,6.7e-05,2]
[406387203,1771855232402,231.48,6.7e-05,2]
[406387204,1771855233686,231.48,6.7e-05,2]
[406387205,1771855234392,231.48,6.7e-05,2]
[406387206,1771855235278,231.48,6.7e-05,2]
[406387207,1771855235848,231.48,6.7e-05,2]
[406387208,1771855236570,231.48,6.7e-05,2]
[406387209,1771855237624,231.48,6.7e-05,2]
[406387210,1771855238168,231.48,6.7e-05,2]
[406387211,1771855238845,231.48,6.7e-05,2]
[406387212,1771855239544,231.48,6.7e-05,2]
[406387213,1771855240960,231.48,6.8e-05,2]
[406387214,1771855241424,231.48,6.8e-05,2]
[406387215,1771855241974,231.48,6.8e-05,2]
[406387216,1771855243053,231.48,6.8e-05,2]
[406387217,1771855243767,231.48,6.8e-05,2]
[406387218,1771855245035,231.48,6.8e-05,2]
[406387219,1771855245642,231.48,6.8e-05,2]
[406387220,1771855246602,231.48,6.8e-05,2]
[406387221,1771855247294,231.48,6.8e-05,2]
[406387222,1771855248398,231.48,6.8e-05,2]
[406387223,1771855249667,231.48,6.8e-05,2]
[406387224,1771855250277,231.48,6.8e-05,2]
[406387225,1771855250814,46.36,6.9e-05,2]
[406387226,1771855250840,185.12,6.9e-05,2]
[406387227,1771855251502,231.48,6.9e-05,2]
[406387228,1771855252205,231.48,6.9e-05,2]
[406387229,1771855253257,231.48,6.9e-05,2]
[406387230,1771855253812,231.48,6.9e-05,2]
[406387231,1771855254494,231.48,6.9e-05,2]
[406387232,1771855255263,231.48,6.9e-05,2]
[406387258,1771855543108,-2385.93157018,0.00011736,2]
[406387259,1771855545120,-217.1816804,0.00011736,2]
[406387270,1771855626119,-237.34736433,0.00011503,2]
[406387271,1771855649119,-220.82120827,0.00011503,2]
[406387272,1771855653074,-188.0251344,0.00011174,2]
[406387273,1771855653095,-1295.26967322,0.00011503,2]
[406387278,1771855752090,-5000.0,0.00011388,2]
[406387279,1771855752111,-3246.56175418,0.00011503,2]
[406387280,1771855752131,-786.23914413,0.00011619,2]
[406387281,1771855752152,-150.0,0.00011883,2]
[406387282,1771855752171,-151.77581775,0.0001191,2]
[406387283,1771855752276,-300.0,0.00012094,2]
[406387284,1771855752298,-300.0,0.00012095,2]
[406387285,1771855752317,-1200.0,0.00012095,2]
[406387286,1771855752336,-203.2,0.000122,2]
[406387287,1771855752354,-2738.61500253,0.00012219,2]
[406387288,1771855758075,-5000.0,0.00012097,2]
[406387289,1771855758096,-8690.04532,0.00012219,2]
[406387290,1771855767077,-5000.0,0.00012097,2]
[406387291,1771855767096,-12006.49683877,0.00012219,2]
[406387292,1771855767115,-190.40069135,0.00012813,2]
[406387293,1771855767134,-263.84380988,0.00012813,2]
[406387294,1771855768088,-241.82737222,0.00012813,2]
[406387295,1771855768110,-500.0,0.00012813,2]
[406387296,1771855768132,-500.0,0.00012813,2]
[406387297,1771855768152,-500.0,0.00012813,2]
[406387298,1771855768173,-500.0,0.00012813,2]
[406387299,1771855768193,-500.0,0.00012813,2]
[406387300,1771855768214,-500.0,0.00012813,2]
[406387301,1771855768235,-500.0,0.00012813,2]
[406387302,1771855768256,-500.0,0.00012813,2]
[406387303,1771855768277,-500.0,0.00012813,2]
[406387304,1771855768297,-500.0,0.00012813,2]
[406387305,1771855768318,-500.0,0.00012813,2]
[406387306,1771855768342,-500.0,0.00012813,2]
[406387307,1771855768363,-500.0,0.00012813,2]
[406387308,1771855768383,-500.0,0.00012813,2]
[406387309,1771855768403,-500.0,0.00012813,2]
[406387310,1771855768425,-500.0,0.00012813,2]
[406387311,1771855768450,-500.0,0.00012813,2]
[406387312,1771855768471,-500.0,0.00012813,2]
[406387313,1771855768490,-500.0,0.00012813,2]
[406387314,1771855768512,-500.0,0.00012813,2]
[406387315,1771855768539,-500.0,0.00012813,2]
[406387316,1771855768561,-500.0,0.00012813,2]
[406387317,1771855768582,-500.0,0.00012813,2]
[406387318,1771855768602,-500.0,0.00012813,2]
[406387319,1771855768622,-500.0,0.00012813,2]
[406387320,1771855768642,-500.0,0.00012813,2]
[406387321,1771855768662,-500.0,0.00012813,2]
[406387322,1771855768682,-500.0,0.00012813,2]
[406387323,1771855768701,-500.0,0.00012813,2]
[406387324,1771855768722,-500.0,0.00012813,2]
[406387325,1771855768742,-500.0,0.00012813,2]
[406387326,1771855768763,-500.0,0.00012813,2]
[406387327,1771855768783,-500.0,0.00012813,2]
[406387328,1771855768803,-500.0,0.00012813,2]
[406387329,1771855768823,-500.0,0.00012813,2]
[406387330,1771855768844,-500.0,0.00012813,2]
[406387331,1771855768866,-500.0,0.00012813,2]
[406387332,1771855768888,-500.0,0.00012813,2]
[406387333,1771855768910,-500.0,0.00012813,2]
[406387334,1771855768933,-500.0,0.00012813,2]
[406387335,1771855768955,-500.0,0.00012813,2]
[406387336,1771855768976,-500.0,0.00012813,2]
[406387337,1771855768996,-295.7927922,0.00012813,2]
[406387338,1771855769016,-10800.65405558,0.00012814,2]
[406387339,1771855772100,-8564.03711656,0.00012814,2]
[406387340,1771855772120,-601.0,0.00012814,2]
[406387341,1771855772140,-4120.14579728,0.000129,2]
[406387342,1771855772159,-500.83240763,0.00013273,2]
[406387343,1771855772178,-156.44244972,0.00013273,2]
[406387344,1771855772197,-504.13955977,0.00013273,2]
[406387345,1771855772216,-168.51991065,0.00013273,2]
[406387346,1771855772236,-500.0,0.00013273,2]
[406387347,1771855772256,-506.37229237,0.00013273,2]
[406387348,1771855772276,-500.0,0.00013273,2]
[406387349,1771855772297,-500.0,0.00013273,2]
[406387350,1771855772330,-500.0,0.00013273,2]
[406387351,1771855772352,-500.0,0.00013273,2]
[406387352,1771855772371,-641.45669496,0.00013273,2]
[406387353,1771855772392,-500.0,0.00013273,2]
[406387354,1771855772411,-488.67713184,0.00013273,2]
[406387355,1771855772433,-502.44799837,0.00013273,2]
[406387356,1771855772458,-501.8810816,0.00013273,2]
[406387357,1771855772479,-500.0,0.00013273,2]
[406387358,1771855772500,-420.0,0.00013275,2]
[406387359,1771855772521,-1680.0,0.00013305,2]
[406387360,1771855772540,-151.77581775,0.00013327,2]
[406387361,1771855772561,-151.92759356,0.00013327,2]
[406387362,1771855772582,-500.0,0.00013698,2]
[406387363,1771855772601,-215.706606,0.00013699,2]
[406387364,1771855772621,-500.0,0.00013699,2]
[406387365,1771855772640,-500.0,0.00013699,2]
[406387366,1771855772660,-500.0,0.00013699,2]
[406387367,1771855772679,-500.0,0.00013699,2]
[406387368,1771855772701,-500.0,0.00013699,2]
[406387369,1771855772720,-304.25225179,0.00013699,2]
[406387370,1771855772740,-500.0,0.00013699,2]
[406387371,1771855772762,-502.12321363,0.00013699,2]
[406387372,1771855772783,-500.81329234,0.00013699,2]
[406387373,1771855772803,-500.0,0.00013699,2]
[406387374,1771855772822,-165.2,0.000137,2]
[406387375,1771855772841,-1000.0,0.00013821,2]
[406387376,1771855772860,-638.9562083,0.00013821,2]
[406387377,1771855772879,-220.33220375,0.00013821,2]
[406387378,1771855772898,-587.59769994,0.00013821,2]
[406387379,1771855772916,-1000.0,0.00013821,2]
[406387380,1771855772936,-1000.0,0.00013821,2]
[406387381,1771855772956,-150.0,0.00013883,2]
[406387382,1771855772976,-8235.80826174,0.0001401,2]
[406387383,1771855772996,-558.42,0.00014246,2]
[406387384,1771855773015,-372.09010676,0.00014247,2]
[406387385,1771855773034,-500.0,0.00014247,2]
[406387386,1771855773053,-1000.0,0.00014247,2]
[406387387,1771855773072,-665.84565931,0.00014368,2]
[406387388,1771855773091,-533.28749668,0.00014368,2]
[406387389,1771855773111,-1500.0,0.00014368,2]
[406387390,1771855773132,-587.0,0.00014572,2]
[406387391,1771855773152,-2351.0,0.00014635,2]
[406387392,1771855773172,-707.20391804,0.00014795,2]
[406387393,1771855773192,-683.89499468,0.00014916,2]
[406387394,1771855773212,-674.8208225,0.00015995,2]
[406387484,1771855831677,-1200.0,0.00012812,2]
[406387486,1771855831687,-150.0,0.00012812,2]
[406387489,1771855831699,-500.0,0.00012813,2]
[406387490,1771855831710,-500.0,0.00012813,2]
[406387492,1771855831719,-444.4,0.00012813,2]
[406387494,1771855831731,-55.6,0.00012813,2]
[406387497,1771855831740,-500.0,0.00012813,2]
[406387500,1771855831750,-117.695,0.00012813,2]
[406387548,1771855832187,-382.305,0.00012813,2]
[406387550,1771855832196,-50.87711007,0.00012813,2]
[406387552,1771855832207,-449.12288993,0.00012813,2]
[406387554,1771855832217,-500.0,0.00012813,2]
[406387556,1771855832227,-500.0,0.00012813,2]
[406387558,1771855832236,-500.0,0.00012813,2]
[406387560,1771855832246,-500.0,0.00012813,2]
[406387562,1771855832256,-500.0,0.00012813,2]
[406387564,1771855832264,-500.0,0.00012813,2]
[406387566,1771855832273,-500.0,0.00012813,2]
[406387568,1771855832283,-500.0,0.00012813,2]
[406387569,1771855832292,-162.3015666,0.00012813,2]
[406387685,1771855839899,-337.6984334,0.00012813,2]
[406387686,1771855839909,-600.0,0.00012813,2]
[406387687,1771855839919,-500.0,0.00012813,2]
[406387688,1771855839930,-500.0,0.00012813,2]
[406387689,1771855839941,-500.0,0.00012813,2]
[406387690,1771855839951,-500.0,0.00012813,2]
[406387691,1771855839961,-365.15301185,0.00012813,2]
[406387692,1771855839973,-134.84698815,0.00012813,2]
[406387693,1771855839983,-500.0,0.00012813,2]
[406387694,1771855839994,-500.0,0.00012813,2]
[406387695,1771855840006,-500.0,0.00012813,2]
[406387696,1771855840017,-500.0,0.00012813,2]
[406387697,1771855840028,-164.76610871,0.00012813,2]
[406387699,1771855840042,-335.23389129,0.00012813,2]
[406387700,1771855840052,-500.0,0.00012813,2]
[406387701,1771855840064,-500.0,0.00012813,2]
[406387702,1771855840074,-500.0,0.00012813,2]
[406387703,1771855840084,-500.0,0.00012813,2]
[406387704,1771855840095,-500.0,0.00012813,2]
[406387705,1771855840105,-500.0,0.00012813,2]
[406387706,1771855840116,-500.0,0.00012813,2]
[406387707,1771855840126,-112.59821323,0.00012813,2]
[406387708,1771855840138,-387.40178677,0.00012813,2]
[406387709,1771855840148,-500.0,0.00012813,2]
[406387710,1771855840158,-500.0,0.00012813,2]
[406387711,1771855840172,-500.0,0.00012813,2]
[406387712,1771855840182,-545.98782636,0.00012813,2]
[406387713,1771855840193,-500.0,0.00012813,2]
[406387714,1771855840204,-500.0,0.00012813,2]